bitfinex/quotes_ETHUSD_20240530
["timestamp","ask_amount","ask_price","bid_price","bid_amount"]
[1717049983929,1.8711529,3775.6,3775.0,0.04279157]
[1717049984744,1.29789222,3775.6,3774.9,0.801]
[1717049985045,1.29789222,3775.6,3775.0,0.04284512]
[1717049985211,1.29789222,3775.6,3775.1,0.801]
[1717049985411,1.29789222,3775.6,3775.3,0.801]
[1717049986064,1.29789222,3775.6,3775.1,0.801]
[1717049986249,4.03129,3776.0,3775.1,0.801]
[1717049986449,1.29789222,3775.9,3775.1,0.801]
[1717049986651,1.29789222,3775.9,3775.2,0.04284512]
[1717049986825,2.6432079,3775.9,3775.2,0.04284512]
[1717049987570,3.4442079,3775.9,3775.2,0.04284512]
[1717049987770,3.4442079,3775.9,3774.9,0.801]
[1717049987928,3.4442079,3775.9,3775.3,0.0428237]
[1717049988267,3.4442079,3775.9,3774.9,0.801]
[1717049988503,2.2644,3775.7,3774.9,0.801]
[1717049988790,1.29789222,3775.6,3774.9,0.801]
[1717049988964,1.29789222,3775.6,3775.0,0.0428237]
[1717049991890,1.29789222,3775.6,3775.1,0.801]
[1717049992390,1.29789222,3775.6,3775.2,0.04280228]
[1717049992755,1.29789222,3775.6,3775.1,0.801]
[1717049993055,1.29789222,3775.6,3775.2,0.04280228]
[1717049993257,1.29789222,3775.6,3775.1,0.801]
[1717049993457,1.29789222,3775.6,3775.2,0.04280228]
[1717049993664,1.29789222,3775.6,3775.1,0.801]
[1717049994069,1.29789222,3775.6,3775.2,0.04280228]
[1717049994560,1.29789222,3775.6,3775.1,0.801]
[1717049994870,1.29789222,3775.6,3775.2,0.04286654]
[1717049995298,1.29789222,3775.6,3775.1,0.801]
[1717049995704,1.29789222,3775.6,3775.2,0.04286654]
[1717049996020,1.29789222,3775.6,3775.1,0.801]
[1717049996220,1.29789222,3775.6,3775.2,0.04286654]
[1717049996423,1.29789222,3775.6,3775.1,0.801]
[1717049996626,1.29789222,3775.6,3775.2,0.04286654]
[1717049996824,1.29789222,3775.6,3775.1,0.801]
[1717049997024,1.29789222,3775.6,3775.2,0.04286654]
[1717049997224,1.29789222,3775.6,3775.1,0.801]
[1717049997702,1.29789222,3775.6,3775.2,0.04286654]
[1717049998229,1.29789222,3775.6,3775.1,0.801]
[1717049998530,1.29789222,3775.6,3775.2,0.04286654]
[1717049998819,1.29789222,3775.6,3775.1,0.801]
[1717049999180,1.29789222,3775.6,3775.2,0.04286654]
[1717049999384,1.29789222,3775.6,3775.1,0.801]
[1717049999926,1.29789222,3775.6,3775.2,0.04286654]
[1717050000286,1.29789222,3775.6,3775.1,0.801]
[1717050000519,1.87111269,3775.6,3775.1,0.801]
[1717050000713,1.87111269,3775.6,3775.2,0.04286654]
[1717050000917,1.87111269,3775.6,3775.3,0.801]
[1717050001136,1.87111269,3775.6,3775.1,1.58935]
[1717050001539,1.87111269,3775.6,3775.2,0.04286654]
[1717050001851,1.87111269,3775.6,3775.1,1.58935]
[1717050002152,1.87111269,3775.6,3775.2,0.04286654]
[1717050002712,1.87111269,3775.6,3775.1,1.58935]
[1717050003146,1.87111269,3775.6,3775.2,0.04294509]
[1717050003531,1.87111269,3775.6,3775.1,1.58935]
[1717050004026,1.87111269,3775.6,3775.2,0.04294509]
[1717050004259,1.87111269,3775.6,3775.1,1.58935]
[1717050004662,1.87111269,3775.6,3775.2,0.04295938]
[1717050004839,1.87111269,3775.6,3775.1,2.39035]
[1717050005042,1.87111269,3775.6,3775.2,0.04295938]
[1717050005446,0.57322047,3775.6,3775.3,0.801]
[1717050005763,0.57322047,3775.6,3775.1,1.828385]
[1717050005764,0.57322047,3775.9,3775.5,0.801]
[1717050005920,1.29789222,3775.9,3775.5,0.801]
[1717050006122,1.87111269,3775.9,3775.5,0.801]
[1717050006425,1.87111269,3775.9,3775.6,0.04295938]
[1717050006745,1.87111269,3775.9,3775.5,0.801]
[1717050006948,1.87111269,3775.9,3775.7,0.04295938]
[1717050007147,1.87111269,3775.9,3775.5,0.801]
[1717050007346,0.57322047,3775.9,3775.8,0.04295938]
[1717050007659,0.57322047,3775.9,3775.7,0.801]
[1717050007660,0.57317299,3775.9,3775.7,0.801]
[1717050007823,0.57317299,3776.1,3775.8,0.239016]
[1717050008023,0.57317299,3776.1,3775.9,0.801]
[1717050008659,0.57317299,3776.1,3776.0,0.04287369]
[1717050009019,0.57317299,3776.1,3775.9,0.801]
[1717050009354,7.32297454,3776.2,3775.9,0.801]
[1717050009355,7.32297454,3776.2,3776.0,0.04287369]
[1717050009732,7.32297454,3776.2,3775.9,0.801]
[1717050010035,0.57308282,3776.1,3775.9,0.801]
[1717050010235,7.32297454,3776.2,3775.9,0.801]
[1717050011170,7.32297454,3776.2,3776.1,0.801]
[1717050011471,2.3796,3776.7,3776.1,0.801]
[1717050011778,0.57307262,3776.8,3776.1,2.38991]
[1717050011942,0.57307262,3776.8,3776.3,0.801]
[1717050012278,0.57307262,3776.8,3776.5,0.801]
[1717050012444,7.32297454,3776.9,3776.5,0.801]
[1717050016175,7.32297454,3776.9,3776.1,1.58891]
[1717050016176,4.23729222,3776.8,3776.1,1.58891]
[1717050016342,3.68729222,3776.8,3776.1,1.58891]
[1717050016547,3.68729222,3776.8,3776.2,0.801]
[1717050018778,4.7883189,3776.8,3775.6,1.58914]
[1717050018928,0.801,3776.6,3775.6,1.58914]
[1717050019135,0.801,3776.4,3775.7,0.04239891]
[1717050019437,1.29789222,3776.3,3775.7,0.04239891]
[1717050019634,0.801,3776.2,3775.1,1.58935]
[1717050019884,2.408,3775.9,3775.1,2.39035]
[1717050020055,1.29789222,3775.8,3775.2,0.04239891]
[1717050020255,1.87111532,3775.8,3775.1,2.39035]
[1717050020501,1.87111532,3775.8,3774.7,2.4599]
[1717050020701,1.58915,3775.6,3774.0,1.58981]
[1717050020871,0.801,3775.1,3774.2,0.801]
[1717050021070,1.29789222,3775.0,3774.1,0.04239891]
[1717050021275,0.801,3774.9,3774.0,1.58981]
[1717050021488,1.29789222,3774.8,3774.0,2.39081]
[1717050021683,1.29789222,3774.8,3774.1,0.239081]
[1717050022759,1.29789222,3774.8,3774.2,0.04280951]
[1717050025163,3.98254,3774.7,3774.2,0.04280951]
[1717050025504,3.98254,3774.7,3773.0,1.59024]
[1717050025505,1.84789222,3774.6,3773.0,1.59024]
[1717050025663,1.84789222,3774.6,3773.1,0.351424]
[1717050025859,1.84789222,3774.6,3773.4,2.2861]
[1717050026064,1.29789222,3774.6,3773.5,1.58999]
[1717050026266,1.29789222,3774.6,3773.6,0.04299169]
[1717050027090,2.393,3774.7,3773.6,0.04299169]
[1717050027269,3.69089222,3774.7,3773.7,0.39190817]
[1717050027598,3.69089222,3774.7,3773.8,0.04369155]
[1717050030559,4.29789222,3774.6,3773.8,0.04369155]
[1717050030764,1.0,3774.0,3773.8,0.04369155]
[1717050031003,0.57340893,3774.1,3772.9,1.924]
[1717050031204,0.57340893,3774.1,3773.1,1.59017]
[1717050031516,7.32297454,3774.3,3773.1,1.59017]
[1717050031745,7.32297454,3774.3,3773.2,0.03822591]
[1717050032015,7.32297454,3774.3,3773.2,0.07848148]
[1717050032860,1.29789222,3774.2,3773.3,0.35926515]
[1717050033064,1.29789222,3774.2,3773.4,0.07829564]
[1717050033307,1.29789222,3774.2,3773.1,1.59017]
[1717050033471,1.29789222,3774.2,3773.5,0.07829564]
[1717050033808,1.29789222,3774.2,3773.1,1.59017]
[1717050033962,1.29789222,3774.2,3773.6,0.07834209]
[1717050034166,1.29789222,3774.2,3773.1,1.59017]
[1717050034366,7.32297454,3774.3,3773.7,0.07834209]
[1717050034562,2.3221,3774.6,3773.4,1.59003]
[1717050034766,1.29789222,3774.5,3773.8,0.07834209]
[1717050034989,1.29789222,3774.5,3773.4,1.59003]
[1717050035392,1.29789222,3774.5,3773.5,0.07838141]
[1717050035575,1.29789222,3774.5,3773.5,0.28442425]
[1717050036883,0.55,3774.4,3773.5,0.07838141]
[1717050037082,1.29789222,3774.3,3773.0,1.924]
[1717050037296,0.55,3774.2,3773.1,0.07838141]
[1717050037504,1.29789222,3774.1,3773.1,0.07838141]
[1717050037706,1.29789222,3774.1,3773.1,0.43765055]
[1717050038089,1.29789222,3774.1,3773.1,0.07838141]
[1717050038290,3.77239222,3773.9,3773.1,0.07838141]
[1717050038475,3.77239222,3773.9,3772.2,1.59055]
[1717050038680,0.55,3773.8,3772.6,1.5904]
[1717050038986,1.29789222,3773.7,3772.6,3.5144]
[1717050039193,1.29789222,3773.7,3772.7,0.67504141]
[1717050040308,1.29789222,3773.7,3772.7,0.07838141]
[1717050041252,1.59,3773.6,3772.7,0.07838141]
[1717050041517,1.84789222,3773.5,3772.0,1.59063]
[1717050041872,2.4154,3773.4,3772.1,0.07889958]
[1717050042130,1.84789222,3773.3,3772.1,0.07889958]
[1717050042286,0.48132922,3773.2,3772.1,0.07889958]
[1717050042487,0.55,3773.1,3772.1,0.07889958]
[1717050042990,0.48132922,3773.2,3772.1,0.07889958]
[1717050042991,7.32297454,3773.3,3772.4,1.59047]
[1717050043192,1.29789222,3773.2,3772.4,1.59047]
[1717050043392,1.29789222,3773.2,3771.8,1.59072]
[1717050043591,1.0,3773.0,3771.8,1.59072]
[1717050043791,2.88807222,3773.2,3771.9,0.07889958]
[1717050044125,2.88807222,3773.2,3771.8,1.59072]
[1717050044280,2.88807222,3773.2,3771.9,1.924]
[1717050044482,0.55,3773.1,3772.0,0.07889958]
[1717050044678,1.29789222,3773.0,3772.0,0.07889958]
[1717050044912,1.29789222,3773.0,3771.8,1.59072]
[1717050045318,1.29789222,3773.0,3771.9,0.07889958]
[1717050045541,0.55,3772.9,3771.9,0.07889958]
[1717050045741,1.29789222,3772.8,3771.9,0.07889958]
[1717050045898,1.29789222,3772.8,3772.0,0.16696196]
[1717050046245,1.59018,3773.2,3772.0,0.16696196]
[1717050046412,1.29789222,3773.1,3772.0,0.16696196]
[1717050046597,1.29789222,3773.2,3772.2,1.59058]
[1717050046801,7.32297454,3773.3,3772.2,3.51458]
[1717050047026,8.62086676,3773.3,3772.4,1.59047]
[1717050047237,1.29789222,3773.2,3772.4,1.59047]
[1717050047828,1.29789222,3773.2,3772.5,0.07889958]
[1717050049105,4.21269222,3773.1,3772.5,0.07889958]
[1717050049304,4.21269222,3773.1,3771.8,1.59072]
[1717050049305,1.29789222,3772.9,3771.8,1.59072]
[1717050049658,1.29789222,3772.9,3771.1,1.924]
[1717050049659,0.55,3772.8,3771.2,1.59097]
[1717050049958,1.29789222,3772.9,3771.7,1.59077]
[1717050050255,3.05760481,3773.0,3772.2,1.59057]
[1717050050256,0.05760481,3773.0,3772.2,1.59057]
[1717050050727,7.32297454,3773.3,3772.3,0.07889958]
[1717050051056,1.29789222,3773.2,3772.3,0.07889958]
[1717050051261,1.29789222,3773.2,3772.2,1.59057]
[1717050051457,1.29789222,3773.2,3772.3,0.159057]
[1717050052118,7.32297454,3773.3,3772.4,1.59049]
[1717050052308,7.32297454,3773.3,3772.7,1.59036]
[1717050053505,7.32297454,3774.1,3772.7,1.59036]
[1717050053724,8.62086676,3774.1,3773.0,1.5902]
[1717050053920,8.62086676,3774.1,3773.1,0.3917]
[1717050054253,3.0,3774.0,3773.1,0.3917]
[1717050054609,8.62086676,3774.1,3773.1,0.3917]
[1717050054816,8.62086676,3774.1,3773.3,1.59011]
[1717050055241,8.62086676,3774.1,3773.4,0.07903544]
[1717050055431,8.62086676,3774.1,3773.4,0.28511998]
[1717050056251,2.4608,3773.9,3773.4,0.07903544]
[1717050056564,1.84789222,3773.8,3772.7,1.59034]
[1717050056925,1.84789222,3773.8,3772.8,0.07901042]
[1717050056926,5.4214243,3773.8,3772.8,0.07901042]
[1717050057118,1.66175451,3773.7,3772.7,1.59034]
[1717050057327,1.29789222,3773.6,3772.7,1.59034]
[1717050057538,1.29789222,3773.6,3772.8,0.07920344]
[1717050057856,1.29789222,3773.6,3772.1,3.51459]
[1717050058064,4.29789222,3773.6,3772.1,3.51459]
[1717050058213,1.52449675,3773.5,3772.4,0.07919987]
[1717050058414,1.29789222,3773.4,3772.4,0.07919987]
[1717050058612,1.8714243,3773.4,3772.4,0.07919987]
[1717050058863,1.29789222,3773.4,3772.4,0.07919987]
[1717050059065,1.29789222,3773.4,3772.1,3.51459]
[1717050059277,1.29789222,3773.4,3772.5,0.07919987]
[1717050059564,1.29789222,3773.4,3772.6,0.07919987]
[1717050059733,1.29789222,3773.4,3772.1,3.51459]
[1717050059953,1.29789222,3773.4,3772.7,0.07919987]
[1717050060126,1.29789222,3773.4,3772.1,3.51459]
[1717050060324,1.29789222,3773.4,3772.2,0.581689]
[1717050060551,1.29789222,3773.4,3772.3,1.59053]
[1717050060749,1.29789222,3773.4,3772.2,0.66088887]
[1717050060750,0.57353208,3773.5,3772.8,3.51429]
[1717050060949,7.32297454,3774.0,3773.2,1.924]
[1717050060950,0.57353208,3773.9,3773.2,1.924]
[1717050061377,7.32297454,3774.0,3773.2,1.924]
[1717050061515,7.32297454,3774.0,3773.3,0.07919987]
[1717050062020,7.32297454,3774.0,3773.3,1.66927987]
[1717050062372,7.32297454,3774.0,3773.6,1.924]
[1717050062538,7.32297454,3774.5,3773.6,1.924]
[1717050062882,1.29789222,3774.4,3773.3,1.59008]
[1717050063159,1.87131116,3774.4,3773.3,1.985199]
[1717050063781,0.57341894,3774.4,3773.7,1.58993]
[1717050064087,7.32297454,3774.8,3774.0,1.924]
[1717050064968,1.29789222,3774.7,3773.7,1.58993]
[1717050065385,1.29789222,3774.7,3773.8,0.07883167]
[1717050065606,2.1599789,3774.7,3773.8,0.07883167]
[1717050065744,0.55,3774.6,3773.4,1.59007]
[1717050065946,1.29789222,3774.5,3773.4,1.59007]
[1717050066214,1.29789222,3774.5,3773.5,0.07883167]
[1717050066476,0.328337,3774.4,3773.5,0.07883167]
[1717050066669,1.29789222,3774.3,3773.5,0.07883167]
[1717050067071,1.87128335,3774.3,3773.5,0.07883167]
[1717050067286,1.87128335,3774.3,3773.0,1.924]
[1717050067470,1.87128335,3774.3,3773.6,0.07883167]
[1717050067670,0.75748204,3774.2,3773.0,1.924]
[1717050067860,1.29789222,3774.1,3773.0,1.924]
[1717050068060,1.87128335,3774.1,3773.1,0.07883167]
[1717050069482,1.29789222,3774.1,3773.1,0.07883167]
[1717050070007,3.0,3774.3,3773.3,1.59011]
[1717050070162,1.29789222,3774.2,3773.3,1.59011]
[1717050071780,1.29789222,3774.2,3773.4,1.924]
[1717050072298,1.29789222,3774.2,3773.5,0.07883167]
[1717050072499,0.57341995,3774.6,3773.5,0.07883167]
[1717050072651,1.29789222,3774.5,3773.6,0.35929417]
[1717050073174,1.29789222,3774.5,3773.7,0.07883167]
[1717050073598,1.29789222,3774.5,3773.3,1.59011]
[1717050073918,1.29789222,3774.5,3773.8,0.0788817]
[1717050074203,1.29789222,3774.5,3773.3,1.59011]
[1717050074551,1.29789222,3774.5,3773.4,0.0788817]
[1717050074751,0.48713122,3774.4,3773.4,0.0788817]
[1717050075000,1.29789222,3774.3,3773.4,0.0788817]
[1717050077353,0.57341995,3774.6,3773.5,1.59002]
[1717050077579,0.57341995,3774.6,3773.6,1.924]
[1717050077580,1.29789222,3774.5,3773.6,1.924]
[1717050077893,1.29789222,3774.5,3773.6,2.0028817]
[1717050078050,1.29789222,3774.5,3773.7,0.43838817]
[1717050078451,1.29789222,3774.5,3773.7,2.02832817]
[1717050078675,1.29789222,3774.5,3773.8,0.0788817]
[1717050079069,1.29789222,3774.5,3773.2,1.59014]
[1717050079261,1.29789222,3774.5,3773.9,0.0788817]
[1717050079468,1.29789222,3774.5,3773.2,1.59014]
[1717050079756,1.29789222,3774.5,3773.3,0.0788817]
[1717050079960,0.18712618,3774.4,3773.3,0.0788817]
[1717050080191,1.29789222,3774.3,3773.3,0.0788817]
[1717050080695,5.29919222,3774.3,3773.3,0.0788817]
[1717050080900,0.57336959,3774.2,3773.3,0.0788817]
[1717050081103,1.29789222,3774.1,3773.2,1.59014]
[1717050081256,1.90386102,3774.1,3773.2,1.59014]
[1717050081457,1.90386102,3774.1,3773.3,0.0788817]
[1717050082402,1.29789222,3774.1,3773.3,0.0788817]
[1717050083218,1.87126181,3774.1,3773.3,0.0788817]
[1717050084621,1.87135695,3774.1,3773.3,0.0788817]
[1717050084918,1.87135695,3774.1,3773.2,1.59014]
[1717050085413,1.87135695,3774.1,3773.3,0.07874944]
[1717050085974,3.50963272,3774.1,3773.3,0.07874944]
[1717050086418,0.57346473,3774.0,3773.3,0.07874944]
[1717050086603,1.29789222,3773.9,3773.3,0.07874944]
[1717050088975,1.29789222,3773.9,3773.2,1.59014]
[1717050089371,1.29789222,3773.9,3773.3,0.07874944]
[1717050089612,0.57344677,3774.1,3773.3,0.24563838]
[1717050089818,1.87133899,3774.1,3773.3,0.24563838]
[1717050090440,1.29789222,3774.0,3773.3,0.07874944]
[1717050090601,1.29789222,3774.0,3773.2,1.59014]
[1717050090985,1.29789222,3774.0,3773.3,0.07874944]
[1717050091189,1.29789222,3774.0,3773.2,1.59014]
[1717050091432,2.18515612,3774.0,3773.4,0.07874944]
[1717050091593,1.58999,3773.6,3772.1,1.59058]
[1717050091793,3.87,3773.4,3772.1,1.59058]
[1717050092049,1.29789222,3773.1,3771.5,1.59086]
[1717050092197,1.59033,3772.8,3771.5,1.59086]
[1717050092520,1.59033,3772.8,3770.5,2.3467]
[1717050092521,0.55,3772.7,3770.9,1.59112]
[1717050092704,0.55,3772.7,3771.0,1.924]
[1717050092890,1.40367513,3772.6,3771.1,0.351512]
[1717050093097,0.55,3772.5,3771.1,0.351512]
[1717050093646,1.87133899,3772.5,3771.4,3.51489]
[1717050094134,1.29789222,3772.5,3771.4,3.51489]
[1717050094341,0.57344677,3772.6,3772.0,1.59066]
[1717050094514,0.57369608,3772.8,3772.3,1.924]
[1717050094697,1.29789222,3772.7,3772.1,0.07670223]
[1717050094896,1.29789222,3772.7,3772.0,1.59066]
[1717050095145,1.29789222,3772.7,3772.2,0.0745881]
[1717050095350,1.29789222,3772.7,3772.0,1.59066]
[1717050095552,1.29789222,3772.7,3771.9,1.924]
[1717050095553,1.29789222,3772.7,3772.3,0.0745881]
[1717050095733,0.91992922,3772.6,3771.4,1.59091]
[1717050095934,1.29789222,3772.5,3771.4,1.59091]
[1717050096100,0.55,3772.4,3771.4,1.59091]
[1717050096302,1.29789222,3772.3,3771.4,1.59091]
[1717050096733,1.29789222,3772.3,3771.5,1.99845245]
[1717050096930,3.0,3772.6,3771.6,0.35893625]
[1717050097204,1.29789222,3772.5,3771.6,0.4333887]
[1717050097916,7.32297454,3772.7,3771.7,1.59077]
[1717050098249,1.29789222,3772.6,3771.7,1.59077]
[1717050098420,1.29789222,3772.6,3771.8,0.07445245]
[1717050098825,0.86208668,3772.5,3771.8,0.07445245]
[1717050100252,1.29789222,3772.4,3771.8,0.07445245]
[1717050100447,2.3809,3772.3,3771.8,0.07445245]
[1717050100745,2.3809,3772.3,3771.7,1.59077]
[1717050100746,1.29789222,3772.2,3771.7,1.59077]
[1717050101153,1.29789222,3772.2,3771.8,0.07469521]
[1717050101450,1.29789222,3772.2,3771.7,1.59077]
[1717050101936,1.29789222,3772.2,3771.8,0.07473448]
[1717050102248,1.29789222,3772.2,3771.7,1.59077]
[1717050102448,1.29789222,3772.2,3771.9,0.07473448]
[1717050102612,1.29789222,3772.2,3771.7,1.59077]
[1717050102812,1.29789222,3772.2,3772.0,0.07477733]
[1717050103027,1.29789222,3772.2,3771.7,1.59077]
[1717050103313,3.0,3772.6,3772.1,0.07477733]
[1717050103513,3.0,3772.6,3771.7,1.749847]
[1717050103514,4.29789222,3772.6,3771.7,1.749847]
[1717050104006,4.29789222,3772.6,3771.8,0.07477019]
[1717050105009,3.0,3772.6,3771.9,3.5147]
[1717050105591,3.0,3772.6,3772.0,0.07486659]
[1717050105717,7.32297454,3772.7,3772.0,0.44973095]
[1717050105919,7.32297454,3772.7,3772.1,1.59061]
[1717050106683,7.32297454,3772.7,3772.2,0.07486659]
[1717050106820,8.91315454,3773.2,3772.2,0.07486659]
[1717050107020,4.84789222,3773.1,3772.2,0.07486659]
[1717050107242,4.84789222,3773.1,3772.1,1.59061]
[1717050107549,1.29789222,3773.1,3772.3,3.51452]
[1717050107751,7.32297454,3773.2,3772.3,3.51452]
[1717050107952,7.32297454,3773.2,3772.5,1.59043]
[1717050108385,7.32297454,3773.2,3772.6,0.07457741]
[1717050108579,7.32297454,3773.2,3772.6,0.43347815]
[1717050109422,1.29789222,3773.1,3772.6,0.07457741]
[1717050109645,1.29789222,3773.1,3772.5,1.59043]
[1717050109839,1.29789222,3773.1,3772.7,0.0745667]
[1717050110042,1.29789222,3773.1,3772.5,1.59043]
[1717050110265,1.29789222,3773.1,3772.8,0.07449175]
[1717050110464,1.29789222,3773.1,3772.5,1.59043]
[1717050110764,1.29789222,3773.1,3772.9,0.07449175]
[1717050110926,1.29789222,3773.1,3772.2,0.63669744]
[1717050111122,1.29789222,3773.1,3772.3,0.41513574]
[1717050111669,1.29789222,3773.1,3772.3,0.48962749]
[1717050111822,1.29789222,3773.1,3772.3,0.07449175]
[1717050112027,2.9713,3773.0,3772.0,1.59066]
[1717050112273,1.29789222,3772.9,3772.4,0.07305508]
[1717050112477,1.29789222,3772.9,3772.0,1.59066]
[1717050112830,1.29789222,3772.9,3772.1,0.07201175]
[1717050113128,1.29789222,3772.9,3772.0,1.59066]
[1717050113323,0.55,3772.8,3771.6,1.924]
[1717050113523,1.29789222,3772.7,3771.4,1.59087]
[1717050113725,0.55,3772.6,3771.4,1.59087]
[1717050114054,1.29789222,3772.5,3771.5,0.07201175]
[1717050115340,1.29789222,3772.5,3771.6,0.60489818]
[1717050115854,1.29789222,3772.5,3771.7,0.07192605]
[1717050117993,0.57369373,3772.7,3771.8,1.59075]
[1717050118164,1.87158595,3772.7,3771.8,1.59075]
[1717050118361,1.87158595,3772.7,3771.9,0.0722152]
[1717050118562,1.29789222,3772.7,3772.0,0.35869652]
[1717050119294,1.87155522,3772.7,3772.1,0.0722152]
[1717050119987,1.29789222,3772.7,3772.1,0.0722152]
[1717050120888,3.0,3773.3,3772.1,0.0722152]
[1717050120889,0.573663,3772.9,3772.2,1.59056]
[1717050121100,1.29789222,3772.8,3772.1,0.0722152]
[1717050121259,1.29789222,3772.8,3772.0,0.35869652]
[1717050121475,1.29789222,3772.8,3772.2,0.0722152]
[1717050121679,1.29789222,3772.8,3772.0,0.35869652]
[1717050121898,1.29789222,3772.8,3772.3,0.0722152]
[1717050122224,1.29789222,3772.8,3772.4,0.0722152]
[1717050122403,1.29789222,3772.8,3771.7,3.51478]
[1717050122604,1.29789222,3772.8,3772.5,0.0722152]
[1717050122803,1.29789222,3772.8,3771.8,0.577618]
[1717050123005,1.29789222,3772.8,3772.6,0.0722152]
[1717050123176,1.29789222,3772.8,3772.0,1.59064]
[1717050123819,1.29789222,3772.8,3772.1,0.0722152]
[1717050124041,1.29789222,3772.8,3772.2,0.16628552]
[1717050124189,0.573663,3773.0,3772.2,0.16628552]
[1717050124190,0.573663,3773.0,3772.3,1.59052]
[1717050125283,3.0,3773.7,3772.3,1.59052]
[1717050125485,8.62086676,3773.1,3772.3,1.59052]
[1717050127516,7.32297454,3773.5,3772.7,1.59034]
[1717050127708,0.57357994,3773.4,3772.8,0.159034]
[1717050127899,0.57357994,3773.4,3772.8,0.23084225]
[1717050128282,0.57357994,3773.4,3773.0,1.924]
[1717050128726,0.57357994,3773.8,3773.0,1.924]
[1717050128924,0.57357994,3773.8,3773.1,1.87028737]
[1717050129107,0.57357994,3773.8,3773.1,1.7984934]
[1717050129432,7.32297454,3774.6,3773.4,3.51407]
[1717050129634,1.8713311,3774.5,3773.4,3.51407]
[1717050129783,0.57343888,3774.5,3773.7,1.58992]
[1717050129979,0.57343888,3774.5,3773.9,1.58984]
[1717050130282,7.32297454,3774.6,3773.9,1.58984]
[1717050131326,1.29789222,3774.5,3773.9,1.58984]
[1717050131761,2.2767,3774.4,3773.2,1.59012]
[1717050131961,2.44499021,3774.3,3773.2,1.59012]
[1717050132146,2.44499021,3774.3,3773.3,0.07143002]
[1717050133168,6.01847242,3774.3,3773.3,0.07143002]
[1717050133337,6.01847242,3774.3,3772.5,4.2593]
[1717050133338,1.12348221,3774.2,3772.6,1.59039]
[1717050133525,1.29789222,3774.1,3772.6,1.59039]
[1717050133726,0.65684724,3774.0,3772.7,0.07143002]
[1717050134061,1.29789222,3773.9,3772.7,0.07143002]
[1717050134566,0.55,3773.8,3772.7,0.07143002]
[1717050135075,1.12348221,3773.8,3772.7,0.07143002]
[1717050135359,3.94185,3773.7,3772.7,0.07143002]
[1717050135563,2.84055028,3773.6,3772.7,0.07143002]
[1717050135861,6.41403249,3773.6,3772.8,0.06899485]
[1717050136161,0.57348221,3773.5,3772.0,6.00933]
[1717050136364,1.29789222,3773.4,3772.0,6.00933]
[1717050136662,1.29789222,3773.4,3772.1,0.06899485]
[1717050136870,3.01847242,3773.4,3772.2,0.35836249]
[1717050137227,3.01847242,3773.4,3772.3,0.06899485]
[1717050137423,1.59012,3773.3,3772.0,1.59063]
[1717050137641,1.84789222,3773.2,3772.0,1.59063]
[1717050137839,0.65684724,3773.1,3772.0,1.59063]
[1717050138038,0.65684724,3773.1,3772.1,0.06939448]
[1717050138039,1.29789222,3773.0,3772.1,0.06939448]
[1717050140090,0.57348221,3773.2,3772.2,1.59056]
[1717050140388,1.29789222,3773.1,3772.3,1.924]
[1717050140684,1.29789222,3773.1,3772.4,0.35839545]
[1717050141184,1.29789222,3773.1,3772.5,0.06946944]
[1717050141341,3.0,3773.4,3772.5,0.06946944]
[1717050141542,1.29789222,3773.3,3772.4,0.35839545]
[1717050141988,1.29789222,3773.3,3772.5,0.06946944]
[1717050142366,2.1599789,3773.3,3772.2,1.59056]
[1717050142671,2.1599789,3773.3,3772.3,0.06928741]
[1717050143047,2.1599789,3773.3,3772.2,1.59056]
[1717050143462,2.1599789,3773.3,3772.3,0.06928741]
[1717050143687,2.1599789,3773.3,3772.2,1.59056]
[1717050143890,1.00565569,3773.2,3772.2,1.59056]
[1717050144113,1.29789222,3773.1,3772.3,0.06928741]
[1717050144975,4.29789222,3773.1,3771.7,1.924]
[1717050145195,2.4284,3773.0,3771.7,1.924]
[1717050145495,2.07108701,3772.9,3771.8,0.0693695]
[1717050145790,2.6447248,3772.9,3771.8,0.0693695]
[1717050146789,2.6447248,3772.9,3771.7,1.924]
[1717050146996,2.4042,3772.7,3771.8,0.0693695]
[1717050147177,1.59047,3772.5,3771.1,1.59103]
[1717050147379,1.88214844,3772.4,3771.1,1.942533]
[1717050147696,2.45583688,3772.4,3771.1,1.942533]
[1717050148063,2.45583688,3772.4,3771.2,0.0693695]
[1717050148991,5.45583688,3772.4,3771.2,0.0693695]
[1717050149193,5.45583688,3772.4,3771.1,1.942533]
[1717050149194,4.88214844,3772.4,3771.1,1.942533]
[1717050149398,0.43349659,3772.3,3771.2,0.06961583]
[1717050149585,1.29789222,3772.2,3771.2,0.06961583]
[1717050149908,1.29789222,3772.2,3771.1,1.59103]
[1717050150288,1.29789222,3772.2,3771.2,0.06961583]
[1717050150605,2.30354791,3772.2,3771.1,1.59103]
[1717050150804,5.30354791,3772.2,3771.1,1.59103]
[1717050151010,5.30354791,3772.2,3771.2,0.06961583]
[1717050151484,5.30354791,3772.2,3771.1,1.59103]
[1717050151686,5.30354791,3772.2,3771.3,0.06997641]
[1717050152008,5.30354791,3772.2,3771.1,1.59103]
[1717050152163,5.30354791,3772.2,3771.1,1.942533]
[1717050152366,5.30354791,3772.2,3771.2,0.06997641]
[1717050154009,2.2903,3772.1,3771.2,0.06997641]
[1717050154218,1.29789222,3772.0,3771.2,0.06997641]
[1717050160488,4.29789222,3772.0,3771.2,0.06997641]
[1717050160692,0.77319479,3771.9,3771.1,1.59103]
[1717050160918,1.29789222,3771.8,3771.3,0.07014396]
[1717050161221,1.29789222,3771.8,3771.4,0.07014396]
[1717050161382,1.29789222,3771.8,3771.1,1.59103]
[1717050161584,1.29789222,3771.8,3771.2,0.07014396]
[1717050163827,1.23610912,3771.8,3771.2,0.07014396]
[1717050164692,1.88875003,3771.8,3771.2,0.07014396]
[1717050164919,1.88875003,3771.8,3770.6,3.51525]
[1717050165526,1.23610912,3771.8,3770.9,1.59112]
[1717050165887,1.23610912,3771.8,3771.0,0.07019039]
[1717050170208,1.23610912,3771.8,3770.9,1.59112]
[1717050173015,1.23610912,3771.8,3770.4,1.59132]
[1717050173016,2.3446,3771.6,3770.4,1.59132]
[1717050173254,1.29789222,3771.5,3770.4,1.59132]
[1717050173447,1.8717016,3771.5,3770.5,0.07031184]
[1717050173867,0.55,3771.4,3770.5,0.07031184]
[1717050174023,1.29789222,3771.3,3770.5,0.07031184]
[1717050174865,1.77452238,3771.3,3770.5,0.07031184]
[1717050175370,2.88890222,3771.2,3769.7,1.59162]
[1717050175580,2.3116,3770.9,3769.7,1.59162]